bitfinex-derivatives/quotes_SOLF0:USTF0_20250109
["timestamp","ask_amount","ask_price","bid_price","bid_amount"]
[1736408146621,2.6248,190.56,190.47,10.59427656]
[1736408147021,2.6249,190.55,190.49,2.6257]
[1736408147325,0.0939,190.69,190.5,10.59427656]
[1736408147524,2.625,190.54,190.48,2.6257]
[1736408147722,2.625,190.54,190.46,1.7229]
[1736408147921,11.175,190.54,190.46,1.7229]
[1736408148125,2.6252,190.53,190.47,2.6259]
[1736408148327,8.55,190.54,190.46,1.7229]
[1736408148721,2.6254,190.51,190.46,1.7229]
[1736408149325,2.6253,190.52,190.46,1.7229]
[1736408149523,8.55,190.54,190.42,13.22077656]
[1736408149524,10.59427656,190.53,190.42,13.22077656]
[1736408150128,2.6256,190.5,190.42,13.22077656]
[1736408151733,8.55,190.54,190.42,10.59427656]
[1736408151930,2.6252,190.53,190.45,2.6262]
[1736408152228,2.6252,190.53,190.45,10.59427656]
[1736408152729,8.55,190.54,190.45,10.59427656]
[1736408152929,8.55,190.54,190.42,10.59427656]
[1736408153231,11.175,190.54,190.47,2.626]
[1736408153826,8.55,190.54,190.45,10.59427656]
[1736408154129,8.55,190.54,190.49,2.6257]
[1736408154330,8.55,190.54,190.45,10.59427656]
[1736408154531,8.55,190.54,190.44,2.6262]
[1736408154732,8.55,190.54,190.45,10.59427656]
[1736408155232,2.6252,190.53,190.46,2.626]
[1736408155531,8.55,190.54,190.45,10.59427656]
[1736408156133,8.55,190.54,190.48,10.59427656]
[1736408157036,8.55,190.54,190.42,19.00369618]
[1736408157228,8.55,190.54,190.45,10.59427656]
[1736408157432,8.55,190.54,190.46,1.7025]
[1736408157836,8.55,190.54,190.48,2.6258]
[1736408158034,8.55,190.54,190.47,10.59427656]
[1736408158336,8.55,190.54,190.46,1.7025]
[1736408159334,2.6254,190.51,190.46,1.7025]
[1736408159535,10.59427656,190.52,190.42,21.82976137]
[1736408159734,10.59427656,190.49,190.42,21.82976137]
[1736408160235,8.55,190.54,190.37,12.45367656]
[1736408160437,10.59427656,190.5,190.4,10.59427656]
[1736408160637,10.59427656,190.53,190.4,10.59427656]
[1736408161232,2.6257,190.5,190.42,2.6266]
[1736408162044,2.6257,190.49,190.41,2.6268]
[1736408162735,10.59427656,190.5,190.4,10.59427656]
[1736408162932,10.59427656,190.5,190.39,21.82976137]
[1736408163441,2.626,190.47,190.39,2.6271]
[1736408163837,10.59427656,190.5,190.38,21.82976137]
[1736408164038,2.6258,190.48,190.41,2.6268]
[1736408164444,10.59427656,190.53,190.4,10.59427656]
[1736408164645,2.6257,190.5,190.42,2.6265]
[1736408165442,10.59427656,190.5,190.39,21.82976137]
[1736408165643,10.59427656,190.5,190.41,21.82976137]
[1736408166048,2.6258,190.48,190.41,21.82976137]
[1736408166244,10.59427656,190.5,190.41,21.82976137]
[1736408166438,10.59427656,190.5,190.39,32.42403793]
[1736408166840,13.21997656,190.5,190.39,32.42403793]
[1736408167034,23.33997656,190.5,190.39,32.42403793]
[1736408167242,20.71427656,190.5,190.39,32.42403793]
[1736408167443,20.71427656,190.5,190.42,2.6266]
[1736408167738,10.12,190.5,190.42,2.6266]
[1736408168643,12.7457,190.5,190.43,46.96570048]
[1736408168949,20.71427656,190.5,190.43,46.96570048]
[1736408169246,2.6264,190.44,190.43,46.96570048]
[1736408169644,10.59427656,190.47,190.4,21.82976137]
[1736408170247,2.6264,190.45,190.4,21.82976137]
[1736408170442,10.59427656,190.47,190.39,79.87545938]
[1736408170648,10.59427656,190.47,190.39,21.82976137]
[1736408171343,2.6263,190.45,190.39,21.82976137]
[1736408171549,10.59427656,190.47,190.36,21.82976137]
[1736408172146,1.6212,190.49,190.39,10.59427656]
[1736408172451,4.247,190.49,190.39,10.59427656]
[1736408172644,4.247,190.49,190.41,2.6267]
[1736408172843,1.6212,190.49,190.39,10.59427656]
[1736408173043,10.59427656,190.46,190.37,46.96988579]
[1736408173250,10.59427656,190.46,190.4,5.02802488]
[1736408173642,2.6267,190.42,190.4,5.02802488]
[1736408173842,10.59427656,190.46,190.4,5.02802488]
[1736408174250,10.59427656,190.46,190.36,21.82976137]
[1736408174750,2.6266,190.42,190.36,21.82976137]
[1736408174952,10.59427656,190.46,190.36,21.82976137]
[1736408175150,10.59427656,190.43,190.36,21.82976137]
[1736408175350,2.6269,190.41,190.37,5.02425773]
[1736408175753,10.59427656,190.46,190.37,5.02425773]
[1736408176451,10.59427656,190.46,190.34,24.45746137]
[1736408177045,10.59427656,190.46,190.35,46.93443703]
[1736408178049,10.59427656,190.46,190.36,5.02093513]
[1736408178346,2.6265,190.44,190.37,2.6273]
[1736408178653,10.59427656,190.43,190.36,5.02093513]
[1736408178950,10.59427656,190.4,190.36,5.02093513]
[1736408179149,10.59427656,190.43,190.35,21.82976137]
[1736408179556,2.6273,190.38,190.35,21.82976137]
[1736408179747,10.59427656,190.43,190.35,21.82976137]
[1736408179950,10.59427656,190.4,190.35,21.82976137]
[1736408180249,2.6275,190.36,190.35,21.82976137]
[1736408180449,10.59427656,190.37,190.3,12.25226137]
[1736408181153,10.59427656,190.34,190.3,12.25226137]
[1736408181555,2.6282,190.31,190.3,12.25226137]
[1736408181749,10.59427656,190.34,190.23,58.04569801]
[1736408181950,2.6285,190.29,190.23,58.04569801]
[1736408182249,10.59427656,190.34,190.23,58.04569801]
[1736408182455,1.6219,190.39,190.24,10.59427656]
[1736408182652,10.59427656,190.37,190.27,10.59427656]
[1736408182854,1.6219,190.39,190.27,10.59427656]
[1736408183046,0.91832697,190.38,190.27,10.59427656]
[1736408183251,2.6274,190.37,190.27,10.59427656]
[1736408183454,1.6219,190.39,190.27,10.59427656]
[1736408183654,10.59427656,190.37,190.2,1.608]
[1736408183854,1.6219,190.39,190.26,10.59427656]
[1736408184353,2.6273,190.38,190.27,2.6286]
[1736408184552,82.1245,190.42,190.22,58.04569801]
[1736408184553,82.1245,190.42,190.29,10.59427656]
[1736408184752,82.0,190.42,190.3,3.3578]
[1736408185248,10.59427656,190.4,190.3,3.3578]
[1736408185446,82.0,190.42,190.3,3.3578]
[1736408185654,2.6271,190.39,190.3,3.3578]
[1736408186247,12.6471,190.39,190.3,3.3578]
[1736408186559,10.02,190.39,190.3,3.3578]
[1736408188356,10.02,190.39,190.31,2.6282]
[1736408188654,10.02,190.39,190.34,2.6277]
[1736408188852,10.02,190.39,190.32,10.59427656]
[1736408189057,10.59427656,190.36,190.3,3.3578]
[1736408189360,10.59427656,190.36,190.28,7.25771643]
[1736408189547,10.59427656,190.36,190.31,7.25771643]
[1736408189752,2.6276,190.36,190.31,7.25771643]
[1736408189958,20.61427656,190.39,190.31,7.25771643]
[1736408190160,10.59427656,190.33,190.29,79.4165873]
[1736408190958,2.6286,190.28,190.2,10.59427656]
[1736408191256,2.6287,190.27,190.2,10.59427656]
[1736408191557,10.59427656,190.33,190.2,10.59427656]
[1736408191855,10.59427656,190.3,190.17,15.65927656]
[1736408192060,10.59427656,190.3,190.17,13.92417656]
[1736408192363,2.629,190.25,190.17,13.92417656]
[1736408192859,10.59427656,190.27,190.16,63.43133579]
[1736408193058,1.0508617,190.32,190.16,63.43133579]
[1736408193360,16.99967501,190.27,190.16,63.43133579]
[1736408194153,2.6289,190.26,190.17,2.6301]
[1736408194557,16.99967501,190.27,190.16,63.43133579]
[1736408194759,2.6291,190.25,190.16,63.43133579]
[1736408194960,16.99967501,190.27,190.16,63.43133579]
[1736408195161,16.99967501,190.31,190.16,63.43133579]
[1736408195457,1.0508617,190.32,190.17,20.29767501]
[1736408196856,1.0508617,190.32,190.2,16.99967501]
[1736408197762,1.0508617,190.32,190.24,2.6291]
[1736408198061,1.0508617,190.32,190.25,3.5489]
[1736408198261,10.02,190.39,190.25,3.5489]
[1736408198662,10.02,190.39,190.26,1.4751]
[1736408198865,10.02,190.39,190.27,2.6287]
[1736408199166,10.02,190.39,190.26,1.4751]
[1736408199462,2.6273,190.38,190.26,1.4751]
[1736408199765,10.02,190.39,190.26,18.47477501]
[1736408201362,2.6276,190.35,190.27,2.6286]
[1736408202165,2.6276,190.35,190.28,2.6285]
[1736408202365,2.6275,190.36,190.26,18.47477501]
[1736408202763,10.02,190.39,190.26,18.47477501]
[1736408203764,16.99967501,190.37,190.25,1.7878]
[1736408204263,16.99967501,190.34,190.27,24.43977778]
[1736408205266,2.6276,190.35,190.27,22.18052223]
[1736408205463,16.99967501,190.37,190.25,1.8469]
[1736408205866,19.62717501,190.37,190.28,2.6285]
[1736408206364,16.99967501,190.37,190.29,2.6284]
[1736408206770,16.99967501,190.37,190.3,1.8904]
[1736408208272,12.83,190.37,190.3,1.8904]
[1736408210073,12.83,190.37,190.31,2.6282]
[1736408210277,12.83,190.37,190.3,1.8904]
[1736408210967,12.83,190.37,190.3,4.5187]
[1736408211371,12.83,190.37,190.3,1.8904]
[1736408212275,2.6275,190.36,190.3,1.8904]
[1736408212479,12.83,190.37,190.3,1.8904]
[1736408212974,2.6277,190.35,190.3,1.8904]
[1736408213279,16.99967501,190.33,190.25,1.8469]
[1736408213679,12.83,190.37,190.25,1.8469]
[1736408213980,16.99967501,190.35,190.25,1.8469]
[1736408214278,2.628,190.33,190.25,1.8469]
[1736408214479,16.99967501,190.35,190.25,1.8469]
[1736408215180,2.628,190.32,190.25,1.8469]
[1736408215475,10.61528934,190.34,190.25,1.8469]
[1736408216178,23.44528934,190.37,190.25,1.8469]
[1736408216772,2.6276,190.36,190.28,2.6286]
[1736408217180,23.44528934,190.37,190.28,2.6286]
[1736408217475,2.6275,190.36,190.28,2.6286]
[1736408217672,23.44528934,190.37,190.29,2.6284]
[1736408217869,23.44528934,190.37,190.3,1.7263]
[1736408218074,23.44528934,190.37,190.3,4.3545]
[1736408218273,23.44528934,190.37,190.31,1.5828]
[1736408218479,12.83,190.37,190.31,1.5828]
[1736408219874,12.83,190.37,190.31,4.2108]
[1736408221077,12.83,190.37,190.32,2.628]
[1736408221281,12.83,190.37,190.31,1.5828]
[1736408221782,23.44528934,190.37,190.31,1.5828]
[1736408222481,12.83,190.37,190.31,1.5828]
[1736408224186,12.83,190.37,190.33,2.6277]
[1736408224385,12.83,190.37,190.34,1.8084]
[1736408224581,10.3767,190.37,190.34,1.8084]
[1736408224886,82.04,190.48,190.34,1.8084]
[1736408224887,10.61528934,190.46,190.34,1.8084]
[1736408226085,23.95528934,190.46,190.34,1.8084]
[1736408226981,2.6267,190.42,190.34,4.436]
[1736408227286,23.95528934,190.46,190.35,4.90034106]
[1736408227682,2.6265,190.44,190.36,2.6274]
[1736408227881,23.95528934,190.46,190.36,2.6274]
[1736408228287,2.6269,190.41,190.34,1.8084]
[1736408228589,10.61528934,190.4,190.33,21.84289213]
[1736408228886,2.6272,190.38,190.33,21.84289213]
[1736408229089,2.6272,190.38,190.3,26.19749213]
[1736408229888,13.24218934,190.4,190.32,2.6279]
[1736408230188,10.61528934,190.43,190.3,3.6199]
[1736408230787,10.61528934,190.43,190.32,4.90864561]
[1736408231392,10.61528934,190.43,190.32,15.52393495]
[1736408231787,10.61528934,190.43,190.33,46.38649118]
[1736408232185,13.24188934,190.43,190.35,2.6275]
[1736408233190,10.61528934,190.43,190.35,2.6275]
[1736408233394,10.61528934,190.43,190.36,2.6274]
[1736408233588,23.95528934,190.46,190.33,21.84289213]
[1736408233788,23.95528934,190.46,190.35,10.61528934]
[1736408234886,26.58138934,190.46,190.38,2.6271]
[1736408235089,13.34,190.46,190.41,10.61528934]
[1736408235382,13.34,190.46,190.43,2.6264]
[1736408235790,13.34,190.46,190.41,10.61528934]
[1736408235986,3.3774,190.55,190.44,10.61528934]
[1736408236294,3.3774,190.55,190.47,10.61528934]
[1736408236787,1.6306,190.55,190.47,10.61528934]
[1736408237091,2.6245,190.58,190.5,13.24078934]
[1736408237287,14.49,190.55,190.5,10.61528934]
[1736408237685,14.49,190.55,190.53,10.61528934]
[1736408237885,3.2748,190.68,190.53,10.61528934]
[1736408237886,12.45878934,190.67,190.53,10.61528934]
[1736408238095,0.92046135,190.66,190.56,10.61528934]
[1736408238491,0.92046111,190.65,190.56,10.61528934]
[1736408238691,0.92046231,190.65,190.56,10.61528934]
[1736408238893,2.6235,190.66,190.56,10.61528934]
[1736408239087,12.45878934,190.67,190.56,10.61528934]
[1736408239088,2.6235,190.65,190.56,10.61528934]
[1736408239396,2.6235,190.65,190.55,2.6247]
[1736408239788,16.92639121,190.66,190.5,16.92639121]
[1736408239993,16.92639121,190.63,190.48,41.33425527]
[1736408240193,16.92639121,190.66,190.5,16.92639121]
[1736408240396,0.92048669,190.65,190.5,16.92639121]
[1736408240988,16.92639121,190.63,190.48,41.33425527]
[1736408241189,16.92639121,190.6,190.46,21.84289213]
[1736408241483,2.66698808,190.59,190.46,21.84289213]
[1736408241689,16.92639121,190.57,190.46,21.84289213]
[1736408241986,16.92639121,190.57,190.43,1.6212]
[1736408242191,2.6253,190.52,190.44,2.6263]
[1736408242391,16.92639121,190.54,190.42,23.70089213]
[1736408242692,2.6255,190.51,190.42,26.32739213]
[1736408242992,16.92639121,190.57,190.42,1.858]
[1736408243187,0.92029568,190.56,190.42,1.858]
[1736408243392,0.92029568,190.56,190.45,2.6262]
[1736408243593,16.92639121,190.57,190.45,2.6262]
[1736408243785,0.92015673,190.56,190.45,2.6262]
[1736408243985,16.92639121,190.57,190.45,2.6262]
[1736408244184,2.625,190.55,190.46,2.626]
[1736408244594,2.6253,190.52,190.43,2.6264]
[1736408244784,16.92639121,190.57,190.42,1.858]
[1736408244988,3.3807,190.58,190.42,1.858]
[1736408245190,3.3807,190.58,190.5,2.6255]
[1736408245593,1.5381,190.58,190.47,16.92639121]
[1736408245893,16.92639121,190.66,190.5,16.92639121]
[1736408246097,0.9204813,190.65,190.53,16.92639121]
[1736408246285,4.3716,190.68,190.59,2.6243]
[1736408246484,0.9205665,190.67,190.56,16.92639121]
[1736408246691,1.7484,190.68,190.59,16.92639121]
[1736408247184,425.34469759,190.93,190.62,16.92639121]
[1736408247185,16.92639121,190.78,190.62,16.92639121]
[1736408247388,22.08779121,190.78,190.62,16.92639121]
[1736408247589,2.622,190.76,190.66,2.6232]
[1736408247794,22.08779121,190.78,190.66,2.6232]
[1736408248091,2.622,190.76,190.66,2.6232]
[1736408248396,16.92639121,190.75,190.62,16.92639121]
[1736408248596,5.1614,190.78,190.61,16.92639121]
[1736408248796,16.92639121,190.72,190.57,1.8413]
[1736408249491,16.92639121,190.69,190.54,21.84289213]
[1736408249798,16.92639121,190.69,190.54,24.46779213]
[1736408249799,2.6236,190.64,190.54,24.46779213]
[1736408249991,1.8248,190.68,190.54,21.84289213]
[1736408250192,3.3167,190.67,190.54,21.84289213]
[1736408250496,2.6236,190.65,190.54,2.625]
[1736408251399,2.6236,190.64,190.54,2.625]
[1736408251796,2.6242,190.6,190.5,2.6255]
[1736408251996,16.92639121,190.63,190.46,1.7252]
[1736408252299,2.6243,190.6,190.51,2.6254]
[1736408252495,16.92639121,190.63,190.48,16.92639121]
[1736408253698,2.6245,190.58,190.5,2.6254]
[1736408253997,16.92639121,190.63,190.48,16.92639121]
[1736408254304,2.6243,190.59,190.51,2.6254]
[1736408254497,16.92639121,190.63,190.48,16.92639121]
[1736408255199,2.6246,190.57,190.5,2.6255]
[1736408255495,2.6246,190.57,190.48,16.92639121]
[1736408255496,16.92639121,190.63,190.46,18.65159121]
[1736408255694,16.92639121,190.6,190.46,18.65159121]
[1736408255896,3.3167,190.67,190.43,16.92639121]
[1736408255897,16.92639121,190.57,190.43,16.92639121]
[1736408256092,1.6111,190.56,190.4,18.67619121]
[1736408256298,2.6256,190.5,190.42,9.83190165]
[1736408256697,2.6256,190.5,190.42,7.20540165]
[1736408256998,16.92639121,190.54,190.4,18.67619121]
[1736408257399,1.7778,190.55,190.4,18.67619121]
[1736408257696,1.7778,190.55,190.43,16.92639121]
[1736408257897,1.6111,190.56,190.46,16.92639121]
[1736408258097,4.4053,190.59,190.49,16.92639121]
[1736408258300,1.7809,190.59,190.49,16.92639121]
[1736408258596,1.7809,190.59,190.54,2.625]
[1736408258793,1.4941,190.62,190.52,16.92639121]
[1736408259000,16.92639121,190.69,190.52,16.92639121]
[1736408259202,2.69166522,190.68,190.58,2.6244]
[1736408259399,1.7684,190.68,190.52,16.92639121]
[1736408259801,1.7684,190.68,190.57,2.6246]
[1736408259995,1.7684,190.68,190.55,16.92639121]
[1736408260397,2.6233,190.67,190.6,2.6242]
[1736408260705,1.7684,190.68,190.55,16.92639121]
[1736408261204,1.7684,190.68,190.58,16.92639121]
[1736408261403,81.92,190.74,190.61,16.92639121]
[1736408261802,81.92,190.74,190.52,16.92639121]
[1736408261803,2.6228,190.7,190.52,16.92639121]
[1736408262006,16.92639121,190.72,190.56,16.92639121]
[1736408262402,1.5533,190.71,190.56,16.92639121]
[1736408264108,2.6229,190.7,190.61,2.624]
[1736408264297,1.5533,190.71,190.61,2.624]
[1736408264501,1.5533,190.71,190.56,16.92639121]
[1736408264908,1.5533,190.71,190.59,16.92639121]
[1736408265205,1.5533,190.71,190.6,1.7865]
[1736408265607,1.5533,190.71,190.64,2.6235]
[1736408266005,1.8481,190.75,190.62,16.92639121]
[1736408266207,3.54574375,190.74,190.66,2.6233]
[1736408266405,1.8481,190.75,190.62,16.92639121]
[1736408267704,0.92325178,190.74,190.61,30.52799324]
[1736408267901,17.84964299,190.74,190.61,28.89919324]
[1736408268105,0.92325178,190.73,190.61,28.89919324]
[1736408268306,2.6231,190.68,190.61,28.89919324]
[1736408269014,2.6229,190.7,190.61,2.624]
[1736408269709,2.6231,190.68,190.6,1.7865]
[1736408269910,16.92639121,190.74,190.6,1.7865]
[1736408270110,16.92639121,190.71,190.59,7.22479831]
[1736408270308,0.92296825,190.7,190.59,7.22479831]
[1736408270514,16.92639121,190.65,190.59,7.22479831]
[1736408270713,2.6242,190.6,190.59,7.22479831]
[1736408271219,2.6242,190.6,190.55,28.89919324]
[1736408271817,16.92639121,190.62,190.55,28.89919324]
[1736408272016,19.55039121,190.62,190.55,28.89919324]
[1736408272212,2.624,190.62,190.55,28.89919324]
[1736408272417,3.7836,190.64,190.52,2.6251]
[1736408272626,2.6239,190.62,190.54,2.625]
[1736408272809,3.7836,190.64,190.51,28.89919324]
[1736408273516,3.7836,190.64,190.53,7.22479831]
[1736408274119,2.6238,190.63,190.54,2.625]
[1736408274420,3.7836,190.64,190.52,45.82558445]
[1736408275421,1.5318,190.69,190.55,16.92639121]
[1736408275616,2.70856381,190.68,190.55,16.92639121]
[1736408275822,0.92276381,190.67,190.55,16.92639121]
[1736408276221,0.92276381,190.67,190.55,24.15118952]
[1736408276620,0.92276381,190.67,190.55,7.22479831]
[1736408276818,2.6236,190.64,190.55,9.84959831]
[1736408277317,20.63459121,190.68,190.55,9.84959831]
[1736408277517,2.6237,190.64,190.55,9.84959831]
[1736408277715,20.63459121,190.68,190.55,7.22479831]
[1736408277920,16.92639121,190.65,190.55,7.22479831]
[1736408278217,16.92639121,190.65,190.54,7.22479831]
[1736408278218,0.92265589,190.64,190.54,7.22479831]
[1736408278412,16.92639121,190.62,190.54,7.22479831]
[1736408279221,16.92639121,190.62,190.5,9.85029831]
[1736408279522,0.92252823,190.61,190.5,7.22479831]
[1736408279724,0.92252823,190.61,190.51,4.89380722]
[1736408279924,1.5872,190.6,190.51,4.89380722]
[1736408280620,20.63459121,190.68,190.49,25.98648952]
[1736408280918,2.6236,190.64,190.49,25.98648952]
[1736408281123,2.5100979,190.67,190.55,16.92639121]
[1736408281622,0.9228979,190.67,190.6,2.6241]
[1736408281822,0.9228979,190.67,190.58,16.92639121]
[1736408282124,3.5460979,190.67,190.59,2.6243]
[1736408282624,0.9228979,190.67,190.59,2.6243]
[1736408283126,3.5461979,190.67,190.58,2.6244]
[1736408283322,0.9228979,190.67,190.58,2.6244]
[1736408283723,0.9228979,190.67,190.57,7.22479831]
[1736408283923,0.92311105,190.66,190.57,7.22479831]
[1736408284230,2.6239,190.63,190.57,7.22479831]
[1736408284621,0.9228979,190.67,190.57,7.22479831]
[1736408284828,2.6236,190.64,190.56,2.6247]
[1736408285224,0.9228979,190.67,190.54,28.89919324]
[1736408285927,0.9228979,190.67,190.59,2.6243]
[1736408286123,0.9228979,190.67,190.56,28.89919324]
[1736408287230,0.9228979,190.67,190.6,2.624]
[1736408287828,2.6232,190.68,190.6,2.624]
[1736408288428,2.6235,190.65,190.59,1.8501]
[1736408288827,16.92639121,190.71,190.59,1.8501]
[1736408289134,0.92338542,190.7,190.59,1.8501]
[1736408289429,0.92338542,190.69,190.59,1.8501]
[1736408289627,1.8355,190.72,190.59,1.8501]
[1736408289827,0.92346762,190.71,190.59,1.8501]
[1736408290028,0.92346762,190.71,190.6,1.4727]
[1736408291125,2.6228,190.7,190.63,2.6237]
[1736408291528,16.92639121,190.74,190.6,1.4727]
[1736408291529,18.82059121,190.77,190.64,16.92639121]
[1736408291735,3.54618968,190.72,190.64,19.54989121]
[1736408291931,2.6225,190.72,190.64,19.54989121]
[1736408292235,2.6224,190.73,190.64,16.92639121]
[1736408292832,0.9237009,190.72,190.66,2.6233]
[1736408293133,1.8942,190.77,190.64,16.92639121]
[1736408293436,2.6222,190.75,190.64,16.92639121]
[1736408293623,0.92378371,190.74,190.67,2.6231]
[1736408293823,3.54598371,190.74,190.67,2.6231]
[1736408294030,2.6222,190.74,190.64,16.92639121]
[1736408294533,1.8942,190.77,190.64,16.92639121]
[1736408294733,2.6221,190.75,190.64,16.92639121]
[1736408295534,2.6221,190.75,190.67,2.6232]
[1736408295831,1.8942,190.77,190.64,16.92639121]
[1736408296138,0.92375051,190.76,190.64,16.92639121]
[1736408296338,3.54575051,190.76,190.68,2.6229]
[1736408296639,81.9,190.8,190.64,24.15118952]
[1736408296829,2.622,190.76,190.69,2.6229]
[1736408297025,81.9,190.8,190.69,2.6229]
[1736408297229,0.92386033,190.79,190.69,2.6229]
[1736408297530,2.622,190.77,190.69,2.6229]
[1736408297933,0.92382912,190.76,190.67,16.92639121]
[1736408298124,2.622,190.76,190.67,16.92639121]
[1736408298328,81.9,190.8,190.68,1.8575]
[1736408298532,0.92369753,190.79,190.68,1.8575]
[1736408298734,2.622,190.76,190.68,4.4804]
[1736408298934,0.92362105,190.75,190.68,4.4804]
[1736408299146,81.9,190.8,190.68,1.8575]
[1736408299338,0.92362534,190.79,190.68,1.8575]
[1736408299837,5.03195856,190.81,190.7,16.92639121]
[1736408300134,1.5367,190.85,190.73,16.92639121]
[1736408300536,2.6209,190.84,190.76,2.6218]
[1736408300734,1.5367,190.85,190.73,16.92639121]
[1736408300929,16.92639121,190.84,190.69,3.4784]
[1736408301130,2.6219,190.77,190.69,3.4784]
[1736408301936,16.92639121,190.81,190.69,3.4784]
[1736408302135,2.6217,190.79,190.71,2.6226]
[1736408302340,16.92639121,190.84,190.69,3.4784]
[1736408302534,0.92292417,190.83,190.7,16.92639121]
[1736408302837,2.6214,190.8,190.7,16.92639121]
[1736408303038,16.92639121,190.84,190.7,16.92639121]
[1736408303238,2.6214,190.81,190.73,2.6224]
[1736408303441,1.5367,190.85,190.7,16.92639121]
[1736408303740,0.92292551,190.84,190.7,16.92639121]
[1736408305928,0.92252561,190.83,190.7,16.92639121]
[1736408306129,2.6218,190.78,190.7,2.6228]
[1736408306941,2.6218,190.78,190.69,3.4784]
[1736408306942,2.6218,190.78,190.71,2.6226]
[1736408307141,1.5367,190.85,190.7,16.92639121]
[1736408307444,0.92233859,190.84,190.7,16.92639121]
[1736408307644,2.6212,190.82,190.74,2.6222]
[1736408307937,0.92233859,190.81,190.74,2.6222]
[1736408308142,1.5367,190.85,190.74,2.6222]
[1736408308445,0.92249951,190.84,190.73,2.6224]
[1736408308737,17.84889072,190.84,190.7,16.92639121]
[1736408308942,2.6214,190.8,190.71,2.6225]
[1736408309138,16.92639121,190.84,190.7,16.92639121]
[1736408309337,2.6213,190.81,190.74,2.6222]
[1736408310243,2.621,190.84,190.74,2.6222]
[1736408310543,16.92639121,190.87,190.75,2.6221]
[1736408310743,0.92274438,190.86,190.73,16.92639121]
[1736408311140,0.92274491,190.85,190.76,2.6219]
[1736408311335,16.92639121,190.87,190.76,2.6219]
[1736408311541,0.9227647,190.86,190.76,2.6219]
[1736408311847,0.9227647,190.85,190.73,16.92639121]
[1736408312143,1.495,190.89,190.76,16.92639121]
[1736408312347,0.92289457,190.88,190.79,16.92639121]
[1736408312548,0.92289457,190.9,190.82,2.621]
[1736408312745,0.92295698,190.89,190.79,16.92639121]
[1736408312943,22.26239121,190.99,190.82,16.92639121]
[1736408313144,5.336,190.99,190.87,2.6204]
[1736408313442,2.6192,190.96,190.85,16.92639121]
[1736408313636,16.92639121,190.98,190.86,1.8156]
[1736408313835,0.92282484,190.97,190.86,18.74199121]
[1736408314048,2.619,190.98,190.86,18.74199121]
[1736408314342,16.92639121,191.02,190.89,2.6201]
[1736408314647,0.92300189,191.01,190.86,18.74199121]
[1736408314840,16.92639121,191.02,190.86,18.74199121]
[1736408315035,16.92639121,191.05,190.89,16.92639121]
[1736408315239,0.92309942,191.04,190.89,16.92639121]
[1736408315741,5.4102,191.08,190.92,16.92639121]
[1736408315936,0.9232379,191.07,190.92,16.92639121]
[1736408316138,5.4102,191.08,190.94,2.6194]
[1736408316645,2.6183,191.03,190.93,2.6196]
[1736408316845,5.4102,191.08,190.87,3.5161]
[1736408317147,1.97000524,191.07,190.88,16.92639121]
[1736408317350,2.619,190.98,190.88,16.92639121]
[1736408317840,2.6188,190.99,190.9,2.62]
[1736408318044,16.92639121,191.0,190.87,3.5161]
[1736408318245,1.4716,190.99,190.87,3.5161]
[1736408318447,3.2629,190.99,190.86,1.8156]
[1736408318644,5.1241,190.99,190.86,1.8156]
[1736408319342,2.6195,190.94,190.86,1.8156]
[1736408319542,5.1241,190.99,190.86,1.8156]
[1736408319740,16.92639121,190.94,190.81,3.3388]
[1736408320045,2.62,190.91,190.81,3.3388]
[1736408320242,16.92639121,190.94,190.77,1.8577]
[1736408320637,16.92639121,190.91,190.77,4.4795]
[1736408320843,1.4842,190.9,190.77,1.8577]
[1736408321043,5.1368,190.9,190.77,1.8577]
[1736408321244,2.6209,190.85,190.77,1.8577]
[1736408321443,16.92639121,190.88,190.77,1.8577]
[1736408322046,2.621,190.83,190.77,1.8577]
[1736408322349,16.92639121,190.85,190.7,16.92639121]
[1736408322543,16.92639121,190.85,190.7,18.83829121]
[1736408322743,16.92639121,190.88,190.7,18.83829121]
[1736408323045,16.92639121,190.88,190.73,16.92639121]
[1736408323244,0.92241368,190.87,190.76,2.6219]
[1736408323444,0.92241368,190.86,190.76,2.6219]
[1736408323649,0.92249682,190.89,190.76,2.6219]
[1736408323839,2.6206,190.87,190.77,2.6218]